Cogmind - Beta 11 X8 @@@ ROGUE MODE // 2021.11.24 @ 16:41:45 Player: biogoob Result: Destroyed by as-82063 with Assembled Blade Performance ------------- Evolutions (0) 0 Regions Visited (4) 800 Robots Destroyed (16) 80 Value Destroyed (328) 328 Prototype IDs (23) 460 Alien Tech Used (0) 0 Bonus (360) 360 TOTAL SCORE: 2028 Bonus ------- Follower Combat Kills 60 Aligned with FarCom 300 Cogmind --------- Core Integrity 0/250 Matter 285/300 Energy 100/100 System Corruption 0% Temperature Cool (0) Movement Core (50) Location -9/Mines Parts ------- > --- POWER (1) -------- (None) > --- PROPULSION (2) --- (None) > --- UTILITY (2) ------ Hacking Suite > --- WEAPON (2) ------- (None) > --- INVENTORY (5) ---- Wheel Medium Storage Unit Signal Interpreter Cloak of Protection Peak State ------------ > --- POWER ------------ Ion Engine > --- PROPULSION ------- Hover Unit Hover Unit > --- UTILITY ---------- Large Storage Unit Improved Targeting Computer > --- WEAPON ----------- Light Assault Rifle Grenade Launcher > --- INVENTORY -------- Ion Engine Wheel Compact Wheel Hover Unit Hover Unit Hover Unit Medium Storage Unit Experimental Sensor Array Signal Interpreter Improved Targeting Computer Improved Targeting Computer Cloak of Protection Hacking Suite Small Laser Light Assault Rifle [Rating: 11] Favorites ----------- Power Ion Engine Engine Ion Engine Propulsion Hover Unit Leg Aluminum Leg Hover Unit Hover Unit Utility Improved Targeting Computer Storage Large Storage Unit Processor Improved Targeting Computer Hackware Hacking Suite Weapon Light Assault Rifle Ballistic Gun Light Assault Rifle Launcher Grenade Launcher Build | -11 -10 -10 -10 -9 ------- Run | Scr Mat Min Exi Min Slots Evolved . | . . . . . Power . | . . . . . Propulsion . | . . . . . Utility . | . . . . . Weapon . | . . . . . Parts Attached 12 | . 8 1 . 3 Power . | . . . . . Engine . | . . . . . Core . | . . . . . Reactor . | . . . . . Propulsion 5 | . 4 . . 1 Treads . | . . . . . Leg 1 | . 1 . . . Wheel . | . . . . . Hover 4 | . 3 . . 1 Flight . | . . . . . Utility 4 | . 3 . . 1 Device . | . . . . . Storage 2 | . 2 . . . Processor 1 | . 1 . . . Hackware 1 | . . . . 1 Protection . | . . . . . Artifact . | . . . . . Weapon 3 | . 1 1 . 1 Energy Gun . | . . . . . Energy Cannon . | . . . . . Ballistic Gun 2 | . 1 . . 1 Ballistic Cannon . | . . . . . Launcher 1 | . . 1 . . Special Weapon . | . . . . . Impact Weapon . | . . . . . Slashing Weapon . | . . . . . Piercing Weapon . | . . . . . Special Melee Weapon . | . . . . . Unidentified Prototypes . | . . . . . Parts Lost 4 | . 2 . . 2 Power 1 | . . . . 1 Propulsion 1 | . 1 . . . Utility . | . . . . . Weapon 2 | . 1 . . 1 Highest Loss Streak 2 | . 1 . . 2 Average Slot Usage (%) 99 | . 99 100 100 93 Engine 13 | . 14 14 14 12 Leg 4 | . 16 . . . Hover 23 | . 11 28 28 26 Storage 13 | . 14 14 14 13 Processor 13 | . 14 14 14 13 Ballistic Gun 17 | . 27 14 14 13 Launcher 10 | . . 14 14 12 Naked Turns 1 | . . . . 1 Heaviest Build 29 | 12 27 29 29 29 Greatest Support 20 | 20 20 12 12 12 Greatest Overweight (x) 4 | . 4 2 2 2 Average Overweight (x) 1 | . . 2 2 1 Largest Inventory Capacity 15 | . 15 15 15 15 Average Capacity 14 | . 13 15 15 14 Most Carried 15 | . 13 13 14 15 Average Carried 12 | . 10 12 13 14 Final Capacity 15 | 8 15 15 15 5 Final Carried 14 | 6 12 13 14 4 Class Distribution -------------------- 100% | Mutant Dominant Class ---------------- Mutant | -10/Materials Mutant | -10/Mines Mutant | -10/Exiles Mutant | -9/Mines Resources | -11 -10 -10 -10 -9 ----------- Run | Scr Mat Min Exi Min Matter Collected 391 | 200 130 61 . . Remotely . | . . . . . Salvage Created 367 | . 359 8 . . Parts 32 | . 29 3 . . Haulers Intercepted . | . . . . . Recyclers Shooed 1 | . . 1 . . Parts Field Recycled . | . . . . . Retrieved Matter . | . . . . . Parts Self-Destructed . | . . . . . Prevented . | . . . . . Kills | -11 -10 -10 -10 -9 ------- Run | Scr Mat Min Exi Min Combat Hostiles Destroyed 15 | . 12 3 . . Guns 12 | . 12 . . . AOE 3 | . . 3 . . Classes Destroyed 3 | . 3 . . . Worker 1 | . 1 . . . Swarmer 9 | . 6 3 . . Grunt 6 | . 6 . . . Best Kill Streak 3 | . 3 3 . . Combat Bots Only 3 | . 3 3 . . Max Kills in Single Turn 1 | . 1 1 . . Gunslinging . | . . . . . Exploded 1 | . . 1 . . Melee . | . . . . . Uniques/NPCs Destroyed . | . . . . . Combat | -11 -10 -10 -10 -9 -------- Run | Scr Mat Min Exi Min Damage Taken 782 | . 421 92 . 269 Core 271 | . 103 9 . 159 Absorbed by Shields . | . . . . . Core Remaining (%) 100 | 100 . . . . Volleys Fired 56 | . 38 13 . 5 Largest 2 | . 2 1 . 2 Hottest 40 | . 40 30 . 40 Shots Fired 97 | . 76 13 . 8 Gun 94 | . 76 10 . 8 Cannon . | . . . . . Launcher 3 | . . 3 . . Special . | . . . . . Kinetic 94 | . 76 10 . 8 Thermal . | . . . . . Explosive 3 | . . 3 . . Electromagnetic . | . . . . . Robot Hit Streak 14 | . 14 3 . 3 Robot Miss Streak 2 | . 2 2 . 1 Penetration Max . | . . . . . Secondary Targets 1 | . 1 . . . Max Gunslinging Chain 1 | . 1 . . . Shots Hit Robots 72 | . 58 8 . 6 Core Hits 32 | . 27 5 . . Critical Kills . | . . . . . Critical Parts Destroyed 1 | . 1 . . . Critical Strikes 1 | . 1 . . . Destroy 1 | . 1 . . . Melee Attacks . | . . . . . Impact . | . . . . . Slashing . | . . . . . Piercing . | . . . . . Sneak Attacks . | . . . . . Combat Hostiles . | . . . . . Follow-up Attacks . | . . . . . Damage Inflicted 795 | . 514 219 . 62 Guns 611 | . 504 58 . 49 Cannons . | . . . . . Explosions 158 | . . 158 . . Melee . | . . . . . Ramming 26 | . 10 3 . 13 Kinetic 611 | . 504 58 . 49 Thermal . | . . . . . Explosive 158 | . . 158 . . Electromagnetic . | . . . . . Impact . | . . . . . Slashing . | . . . . . Piercing . | . . . . . Highest Corruption . | . . . . . Average Corruption . | . . . . . Corruption Purged . | . . . . . Overload Shots . | . . . . . Overflow Damage . | . . . . . Projectiles . | . . . . . Explosions . | . . . . . Melee . | . . . . . Knockbacks . | . . . . . Impact . | . . . . . Kinetic . | . . . . . Secondary . | . . . . . Self-Inflicted Damage 77 | . 5 67 . 5 Shots 2 | . . 2 . . Rammed 8 | . 1 3 . 4 Targets Rammed 8 | . 1 3 . 4 Kicked . | . . . . . Crushed . | . . . . . Highest Temperature 46 | . 46 4 . 2 Average Temperature 14 | . 16 2 . 2 Received Heat Transfer 209 | . 189 . . 20 Siege Activations . | . . . . . Robots Corrupted . | . . . . . Combat Hostiles . | . . . . . Parts Fried . | . . . . . Impact Corruptions . | . . . . . Robots Melted . | . . . . . Combat Hostiles . | . . . . . Parts Melted . | . . . . . Heat Transferred . | . . . . . Parts Sabotaged . | . . . . . Parts Stolen . | . . . . . Parts Stripped . | . . . . . Power Chain Reactions . | . . . . . Missiles Intercepted . | . . . . . Alert | -11 -10 -10 -10 -9 ------- Run | Scr Mat Min Exi Min Peak Influence 226 | . 226 145 . . Initial 60 | . . 60 . . Average 65 | . 117 55 . . Maximum Alert Level 1 | . 1 . . . Low Security (%) 95 | . 86 100 . 100 Level 1 4 | . 13 . . . Level 2 . | . . . . . Level 3 . | . . . . . Level 4 . | . . . . . Level 5 . | . . . . . High Security . | . . . . . Max Security . | . . . . . Squads Dispatched 3 | . 2 1 . . Investigation 1 | . 1 . . . Extermination . | . . . . . Reinforcement 1 | . 1 . . . Assault 1 | . . 1 . . Garrison . | . . . . . Intercept . | . . . . . Construction Impeded . | . . . . . Haulers Reinforced . | . . . . . Active Scanning Responses . | . . . . . Cargo Convoy Interrupts . | . . . . . Stealth | -11 -10 -10 -10 -9 --------- Run | Scr Mat Min Exi Min Distress Signals 2 | . 2 . . . Communications Jammed . | . . . . . Distress Signals . | . . . . . Times Spotted 34 | . 20 3 . 11 Peak Tracking Total 16 | . 4 3 . 16 Tactical Retreats 3 | . 1 . . 2 Traps | -11 -10 -10 -10 -9 ------- Run | Scr Mat Min Exi Min Traps Triggered 1 | . 1 . . . Indirectly . | . . . . . Trap Hack Attempts . | . . . . . Triggered . | . . . . . Disarmed . | . . . . . Reprogrammed . | . . . . . Reused . | . . . . . Traps Extracted . | . . . . . Installed . | . . . . . Triggered . | . . . . . Machines | -11 -10 -10 -10 -9 ---------- Run | Scr Mat Min Exi Min Machines Disabled 2 | . . 2 . . Max in Single Turn 1 | . . 1 . . Machines Sabotaged . | . . . . . Garrisons Compromised . | . . . . . Overloaded Fab Kills . | . . . . . Hacking | -11 -10 -10 -10 -9 --------- Run | Scr Mat Min Exi Min Machines Accessed 5 | . 2 . 2 1 Terminals 2 | . 2 . . . Fabricators . | . . . . . Repair Stations . | . . . . . Recycling Units . | . . . . . Scanalyzers . | . . . . . Garrison Access . | . . . . . Total Hacks 12 | . 9 . 2 1 Successful 8 | . 5 . 2 1 Failed 3 | . 3 . . . Catastrophic . | . . . . . Database Lockouts 1 | . 1 . . . Manual 8 | . 7 . 1 . Terminals 9 | . 9 . . . Fabricators . | . . . . . Repair Stations . | . . . . . Recycling Units . | . . . . . Scanalyzers . | . . . . . Garrison Access . | . . . . . Terminal Hacks 6 | . 3 . 2 1 Record 1 | . . . 1 . Robot Analysis 1 | . 1 . . . Open Door 1 | . . . . 1 Dispatch Records 1 | . 1 . . . Hauler Manifests 1 | . 1 . . . EX-Prototype ID Bank 1 | . . . 1 . Fabricator Hacks . | . . . . . Repair Station Hacks . | . . . . . Recycling Unit Hacks . | . . . . . Scanalyzer . | . . . . . Garrison Access Hacks . | . . . . . Unauthorized Hacks 2 | . 2 . . . Terminals 2 | . 2 . . . Assimilate 1 | . 1 . . . Botnet 1 | . 1 . . . Fabricators . | . . . . . Repair Stations . | . . . . . Recycling Units . | . . . . . Scanalyzers . | . . . . . Garrison Access . | . . . . . Data Cores Recovered . | . . . . . Used . | . . . . . Hacking Detections 2 | . 2 . . . Full Trace Events . | . . . . . Feedback Events . | . . . . . Feedback Blocked . | . . . . . Robot Schematics Acquired . | . . . . . Robots Built . | . . . . . Authchips . | . . . . . Time . | . . . . . Total Robot Build Rating . | . . . . . Part Schematics Acquired . | . . . . . Parts Built . | . . . . . Authchips . | . . . . . Time . | . . . . . Total Part Build Rating . | . . . . . Parts Repaired . | . . . . . Time . | . . . . . Parts Recycled . | . . . . . Recycled Matter . | . . . . . Retrieved Matter . | . . . . . Retrieved Components . | . . . . . Parts Scanalyzed . | . . . . . Part Schematics Acquired . | . . . . . Parts Damaged . | . . . . . Bothacking | -11 -10 -10 -10 -9 ------------ Run | Scr Mat Min Exi Min Used RIF Installer . | . . . . . Robots Hacked . | . . . . . Non-combat . | . . . . . Combat . | . . . . . Robot Hacks Applied . | . . . . . Relay Couplers Released . | . . . . . Fabnet Peak Effective % . | . . . . . Robots Rewired . | . . . . . Allies Hacked . | . . . . . Hacks Repelled . | . . . . . Allies | -11 -10 -10 -10 -9 -------- Run | Scr Mat Min Exi Min Total Allies 2 | . 1 1 . . Largest Group 1 | . 1 1 1 1 Highest-Rated Group 31 | . 10 31 31 31 Highest-Rated Ally 31 | . 10 31 31 31 Total Orders . | . . . . . Ally Attacks 6 | . . 1 . 5 Total Damage 231 | . . 171 . 60 Kills 5 | . . 2 . 3 Allies Corrupted . | . . . . . Allies Melted . | . . . . . Intel | -11 -10 -10 -10 -9 ------- Run | Scr Mat Min Exi Min Robot Analysis Total 1 | . 1 . . . Derelict Logs Recovered 1 | . . 1 . . Drone Launches . | . . . . . Drone Recoveries . | . . . . . Exploration | -11 -10 -10 -10 -9 ------------- Run | Scr Mat Min Exi Min Turns Passed 2360 | . 596 1074 369 321 Spaces Moved 1271 | 1 280 593 210 187 Core 16 | . . . . 16 Treads . | . . . . . Legs 191 | 1 190 . . . Wheels . | . . . . . Hover 1064 | . 90 593 210 171 Flight . | . . . . . Fastest Speed 50 | 120 120 176 176 50 Average Speed 169 | 120 159 176 176 160 Slowest Speed 310 | 120 310 176 176 176 Overloaded Moves . | . . . . . Propulsion Burnouts . | . . . . . Robots Hopped . | . . . . . Cave-ins Triggered . | . . . . . Exploration Rate (%) 49 | 1 50 99 61 34 Regions Visited 4 Branch Regions 3 Pre-discovered Areas 2 | . . 1 1 . Known Exits Taken . | . . . . . Unknown Exits Taken 4 | 1 1 1 1 . Scrap Searched 2 | . . 1 . 1 Spaces Dug . | . . . . . Terrain Destroyed 18 | . . 18 . . Melee . | . . . . . Projectile . | . . . . . AOE 18 | . . 18 . . Terrain Rammed . | . . . . . Walls Destroyed . | . . . . . Machines Disabled . | . . . . . Actions | -11 -10 -10 -10 -9 --------- Run | Scr Mat Min Exi Min Total 1392 | . 370 610 210 202 Wait 29 | . 29 . . . Move 1267 | . 279 592 209 187 Hop . | . . . . . Pick Up 11 | . 8 1 1 1 Fast Attach 4 | . 3 . . 1 Attach 3 | . 2 . . 1 Detach 2 | . 2 . . . Swap 5 | . 3 1 . 1 Drop 7 | . 5 . . 2 Fire 56 | . 38 13 . 5 Melee . | . . . . . Ram 8 | . 1 3 . 4 Kick . | . . . . . Crush . | . . . . . Escape Stasis . | . . . . . Rewire . | . . . . . Trap . | . . . . . Miscellaneous . | . . . . . Route ------- -11/Scrapyard -10/Materials (discovered 3 exits: [*Mat] / [*Min x2]) -10/Mines (discovered 3 exits: [*Mat x2] / *Exi) -10/Exiles -9/Mines History --------- Turn | Location | Event 1 | -11/Scrapyard | Discovered new exit (range 0) 1 | -11/Scrapyard | Entered Materials 130 | -10/Materials | Central database locked down 318 | -10/Materials | Build established: Mutant 341 | -10/Materials | Discovered new exit (range 12) 505 | -10/Materials | Discovered new exit (range 15) 538 | -10/Materials | Discovered new exit (range 16) 597 | -10/Materials | Entered Mines 617 | -10/Mines | Met a Derelict bent on vengeance 639 | -10/Mines | Discovered new exit (range 9) 753 | -10/Mines | Learned location of Zion (-6) 966 | -10/Mines | Discovered new exit (range 14) 1283 | -10/Mines | Met a Derelict testing a Signal Generator 1662 | -10/Mines | Deemed a non-threat by the Exiles lab entrance 1664 | -10/Mines | Discovered new exit (range 5) 1671 | -10/Mines | Entered Exiles 1671 | -10/Exiles | Accompanied by 1 ally 1715 | -10/Exiles | Met 8R-AWN 1744 | -10/Exiles | Met EX-HEX 1791 | -10/Exiles | Met EX-BIN 1814 | -10/Exiles | Aligned with FarCom system 1816 | -10/Exiles | Given EX-Vault access code 1858 | -10/Exiles | Opened EX-Vault 1870 | -10/Exiles | Found Cloak of Protection 1910 | -10/Exiles | Warned to stay clear of 0b10 Research branches 1961 | -10/Exiles | Met EX-DEC 2021 | -10/Exiles | Discovered new exit (range 14) 2040 | -10/Exiles | Left Exiles lab with Cloak of Protection 2040 | -10/Exiles | Entered Mines 2040 | -9/Mines | Accompanied by 1 ally 2071 | -9/Mines | Found the Drone Emporium 2215 | -9/Mines | Found a damaged Exp. Sensor Array with a note attached 2220 | -9/Mines | Found Prototype Device 2317 | -9/Mines | Assembled infested the area 2321 | -9/Mines | Core integrity fell below 50% 2348 | -9/Mines | Released all parts (6) 2360 | -9/Mines | Core integrity fell below 20% 2361 | -9/Mines | Destroyed by as-82063 with Assembled Blade Last Messages --------------- 02242_ K-01 Serf collects debris. 02317_ ALERT: Infestation in the mines, dispatching Demolisher response squad. 02321_ Ion Engine destroyed. 02322_ Grenade Launcher destroyed. 02325_ as-29486 destroyed. 02327_ 70-C4C(g) knocked back. 02328_ as-14634 destroyed. 02345_ Destroyed Asb. Hover Unit. 02348_ Released Lgt. Assault Rifle. 02348_ Released Hover Unit. 02348_ Released Imp. Targeting Computer. 02348_ Released Lrg. Storage Unit. 02348_ Released Hover Unit. 02348_ Released Lgt. Assault Rifle. 02348_ Lgt. Assault Rifle crushed and broken. 02349_ Acquired Hacking Suite. 02355_ Dropped Hover Unit. 02358_ Slammed into as-82063. 02360_ Slammed into as-09935. 02361_ Slammed into as-71772. Map ----- +----------------------------------------------------+ | ?????# #####?## ######?####???????? | | ?????# ### ### ##????### | | ?????# ##??## | | ?????## #### | | ??????## ### ## | | ???????# #### #### ##### | | ???????## ######??# ##???## | | ????????# #?# #?????## | | ???????## #?# ##??????## | | ???????# ##### ##????????# | | ???????# ##????? ##?????????# | | ???????## #?????##### ###???????? | | ????????# ##??###???# ##?????????#### | | ????????# ### ##??# ??????????????? | | ????????# #??# ??????????????? | | ????????# #??# ??????????????? | | ????????## ##??# ??????????????? | | ?????????## ###???# ??????????????? | | ??????????#### #?????? ??????????????? | | ?????????????#!#?????????????????????? | | ??????########=#?????????????????????? | | ??????#==!![=![#?????????????????????? | | ??????#*######%#?????????????????????? | | ??????# #????#=#?????????????????????? | | ??????# #??###a###???????????????????? | | ??????# #??#a@ a #???????????????????? | | ??????# #??#a""" #???????????????????? | | ??????# #??#a""" #???????????????????? | | ??????# #??#a""" #???????????????????? | | ??????# #??# #???????????????????? | | ??????# #??# = #???????????????????? | | ??????# #### #???????????????????? | | ??????# ########???????????????????? | | ??????# ##?????????????????????????? | | ??????# #?????????????????????????? | | ??????# #????????????????????????? | | ?????? % #???????????????????????? | | ?????? ?????????????????????? | | ????? ## ##????????????????????? | | ????? % ##? #?????????????????????? | | ???? ##???#?????????????????????? | | ???? ##??????????????????????????? | | ??? #???????????????????????????? | | ??? #???????????????????????????? | | ??# ???????????????????????????? | | ??# ???????????????????????????? | | ??# ???????????????????????????? | | ??# ???????????????????????????? | | ??? ???????????????????????????? | | ????? ???????????????????????????? | +----------------------------------------------------+ Best States ------------- Heat Dissipation 25 Energy Generation 10 Energy Capacity 250 Matter Stores 300 Matter Capacity 300 Sight Range 16 Terrain Scan Density 10 Evasion (%) 55 Targeting Accuracy 6 Offensive Hacking 10 Item Schematics ----------------- None Robot Schematics ------------------ None Fabricated ------------ Nothing Alien Tech Used ----------------- None Achievements -------------- None Challenges ------------ None Game ------ Seed OmegaRiotShield Manual? 0 Play Time 00:10:12 Cumulative 68.7 hours Start 2021.11.24 @ 16:30:44 End 2021.11.24 @ 16:41:45 Sessions 1 Manual Loads 0 Difficulty Rogue Special Mode None Game No. 81 Rogue 60 Adventurer 17 Explorer 4 Win Type - Total 1 Types 0/0/1/0/0/0/0/0/0 Lore% 40 Gallery% 45 Achievement% 42 Wizard Run 0 Options --------- ASCII 1 Keyboard 1 Movement Vi Keybinds 0 Fullscreen 1 Font 18/Terminus Map View 83x54 Tactical HUD 1 Map Filters SATURATION(80) Filters SATURATION(80) Steam 1 RUN: 65958893-5ffa-43cd-85d2-0b6cf9766170